bitfinex-derivatives/quotes_SOLF0:USTF0_20250626
["timestamp","ask_amount","ask_price","bid_price","bid_amount"]
[1750920234820,2.19218886,144.94,144.93,6.8967]
[1750920236118,6.8954,144.96,144.93,6.8967]
[1750920236416,2.19218886,144.95,144.93,6.8967]
[1750920236610,2.19218886,144.95,144.94,6.8962]
[1750920236806,2.19218886,144.96,144.94,6.8962]
[1750920237818,2.19218886,144.96,144.93,6.8966]
[1750920238419,2.19218886,144.96,144.94,6.8962]
[1750920239320,2.19218886,144.96,144.93,6.8965]
[1750920240321,9.08758886,144.96,144.92,9.08918886]
[1750920240524,2.19218886,144.95,144.92,6.897]
[1750920241817,6.8954,144.96,144.93,6.8967]
[1750920242025,2.19218886,144.95,144.93,6.8967]
[1750920245026,6.8954,144.96,144.93,6.8967]
[1750920245220,123.14740084,145.0,144.92,2.19218886]
[1750920245525,2.19218886,144.96,144.92,2.19218886]
[1750920245921,6.8946,144.98,144.94,6.8959]
[1750920246133,2.19218886,144.97,144.93,2.19218886]
[1750920246823,2.19218886,144.97,144.94,6.8959]
[1750920247225,2.19218886,144.97,144.93,2.19218886]
[1750920247429,2.19218886,144.97,144.94,6.8961]
[1750920248641,2.19218886,144.96,144.93,6.8965]
[1750920250829,2.19218886,144.95,144.92,6.8971]
[1750920251023,2.19218886,144.94,144.92,6.8971]
[1750920252233,5.93581801,144.97,144.92,6.8971]
[1750920252533,9.08818886,144.95,144.92,6.8971]
[1750920252833,2.19218886,144.95,144.92,6.8971]
[1750920253041,2.19218886,144.95,144.93,6.8964]
[1750920253340,2.19218886,144.96,144.93,6.8964]
[1750920253531,2.19218886,144.97,144.94,6.8962]
[1750920253732,123.14740084,145.0,144.94,2.19218886]
[1750920253733,2.19218886,144.98,144.94,2.19218886]
[1750920253928,2.19218886,144.99,144.94,2.19218886]
[1750920254128,2.19218886,144.99,144.96,6.8952]
[1750920255632,2.19218886,144.98,144.96,6.8952]
[1750920256535,130.04110084,145.0,144.97,6.8948]
[1750920256536,2.19218886,144.99,144.97,6.8948]
[1750920257536,2.19218886,144.99,144.96,6.8951]
[1750920258736,2.19218886,144.98,144.96,6.8951]
[1750920264542,2.19218886,144.98,144.95,6.8956]
[1750920264734,9.08728886,144.97,144.94,34.22]
[1750920264935,2.19218886,144.96,144.94,34.22]
[1750920265340,2.19218886,144.95,144.94,34.22]
[1750920265931,6.8951,144.97,144.94,34.22]
[1750920265932,2.19218886,144.96,144.94,34.22]
[1750920266333,2.19218886,144.96,144.94,41.1162]
[1750920266740,2.19218886,144.95,144.9,2.19218886]
[1750920266944,2.19218886,144.94,144.9,36.39218886]
[1750920267135,2.19218886,144.94,144.9,34.2]
[1750920267553,34.2,144.96,144.86,6.9303]
[1750920267745,2.19218886,144.89,144.87,34.2]
[1750920268038,2.19218886,144.89,144.87,41.0994]
[1750920268244,2.19218886,144.88,144.84,34.2]
[1750920268438,2.19218886,144.87,144.84,34.2]
[1750920268642,2.19218886,144.87,144.86,6.9001]
[1750920268842,2.19218886,144.88,144.84,36.39218886]
[1750920269139,2.19218886,144.88,144.85,6.9002]
[1750920270145,2.19218886,144.88,144.86,6.8999]
[1750920270448,10.32680631,144.9,144.86,6.8999]
[1750920275852,6.8987,144.89,144.85,6.9005]
[1750920276248,10.32770631,144.88,144.85,6.9005]
[1750920278856,10.32770631,144.88,144.84,41.1009]
[1750920280254,10.32770631,144.88,144.85,6.9005]
[1750920280561,3.42850631,144.88,144.85,6.9005]
[1750920284558,10.32760631,144.88,144.85,6.9005]
[1750920287055,3.42850631,144.88,144.85,6.9005]
[1750920290268,2.19448537,144.87,144.85,6.9005]
[1750920291265,2.19448537,144.87,144.86,6.9001]
[1750920291465,2.19448537,144.88,144.86,6.9001]
[1750920294764,2.19448537,144.87,144.85,6.9003]
[1750920295666,6.8991,144.88,144.85,6.9003]
[1750920295868,2.19448537,144.87,144.85,6.9003]
[1750920298270,2.19448537,144.87,144.86,6.9001]
[1750920298869,2.19448537,144.88,144.86,6.9001]
[1750920299472,2.19448537,144.89,144.86,2.19448537]
[1750920299676,2.19448537,144.9,144.86,2.19448537]
[1750920300381,2.19448537,144.91,144.87,2.19448537]
[1750920300974,2.19448537,144.91,144.89,6.8984]
[1750920301175,2.19448537,144.91,144.87,2.19448537]
[1750920301176,2.19448537,144.91,144.86,2.19448537]
[1750920301480,2.19448537,144.87,144.85,6.9002]
[1750920302382,3.42889179,144.89,144.84,41.1008]
[1750920303081,6.8992,144.88,144.84,41.1008]
[1750920306082,6.8992,144.88,144.85,6.9004]
[1750920307178,10.32759179,144.89,144.86,6.9]
[1750920307383,6.8987,144.89,144.86,6.9]
[1750920307590,10.32759179,144.89,144.86,6.9]
[1750920308081,10.32719179,144.9,144.87,6.8996]
[1750920308271,3.42889179,144.9,144.84,34.2]
[1750920308474,6.8989,144.89,144.85,6.9002]
[1750920309489,10.32719179,144.9,144.84,34.2]
[1750920309976,10.32719179,144.9,144.86,6.8998]
[1750920310386,10.32719179,144.9,144.84,34.2]
[1750920312887,10.32719179,144.9,144.86,6.8998]
[1750920314184,10.32719179,144.9,144.87,6.8996]
[1750920314779,3.42889179,144.9,144.87,6.8996]
[1750920317276,10.32709179,144.9,144.87,6.8996]
[1750920321892,10.32676432,144.9,144.87,6.8996]
[1750920322292,3.42856432,144.9,144.84,34.2]
[1750920322993,3.42856432,144.9,144.88,6.899]
[1750920323594,3.42856432,144.9,144.87,6.8994]
[1750920323790,10.32696432,144.9,144.84,34.2]
[1750920324089,3.42856432,144.9,144.84,34.2]
[1750920324393,2.19413824,144.89,144.84,36.39413824]
[1750920324796,2.19413824,144.89,144.87,6.8993]
[1750920327099,2.19413824,144.9,144.87,6.8993]
[1750920328703,2.19413824,144.89,144.87,6.8993]
[1750920330001,2.19413824,144.89,144.86,6.8999]
[1750920330202,2.19413824,144.88,144.86,6.8999]
[1750920331299,2.19413824,144.87,144.84,34.2]
[1750920331500,2.19413824,144.86,144.84,34.2]
[1750920332209,2.19413824,144.86,144.85,6.9003]
[1750920333211,2.19484389,144.86,144.85,6.9003]
[1750920335308,2.19484389,144.87,144.86,6.9001]
[1750920335512,2.19484389,144.88,144.84,36.39484389]
[1750920335811,2.19484389,144.89,144.85,2.19484389]
[1750920336214,2.19484389,144.89,144.87,6.8993]
[1750920339520,2.19484389,144.9,144.86,2.19484389]
[1750920339920,2.19484389,144.88,144.84,36.39484389]
[1750920340422,2.19484389,144.9,144.86,2.19484389]
[1750920340717,2.19484389,144.91,144.86,2.19484389]
[1750920341108,2.19484389,144.91,144.9,6.8981]
[1750920342013,2.19484389,144.93,144.89,2.19484389]
[1750920342212,2.19484389,144.93,144.89,36.33484389]
[1750920342413,2.19484389,144.95,144.93,6.8967]
[1750920342919,2.19484389,144.95,144.9,2.19484389]
[1750920342920,2.19484389,144.95,144.92,6.897]
[1750920343114,2.19484389,144.94,144.92,6.897]
[1750920344023,2.19484389,144.94,144.9,2.19484389]
[1750920344320,3.42573561,144.95,144.89,36.5294]
[1750920344718,3.42573561,144.93,144.89,34.14]
[1750920345221,10.32273561,144.93,144.89,41.0386]
[1750920345423,3.42573561,144.93,144.89,34.14]
[1750920345721,3.42573561,144.93,144.89,41.0386]
[1750920346512,10.32273561,144.93,144.89,41.0386]
[1750920347620,5.89764578,144.95,144.9,6.8977]
[1750920347814,3.42573561,144.93,144.9,6.8977]
[1750920349420,3.42573561,144.93,144.91,6.8977]
[1750920350525,3.42573561,144.93,144.9,6.8979]
[1750920350710,3.42573561,144.93,144.89,34.14]
[1750920351322,10.32253561,144.93,144.89,41.0383]
[1750920353417,6.8972,144.92,144.89,41.0383]
[1750920354125,3.42573561,144.93,144.88,6.899]
[1750920354126,10.32353561,144.91,144.88,6.899]
[1750920354325,3.42573561,144.91,144.86,34.14]
[1750920354622,6.8985,144.9,144.87,6.8993]
[1750920355225,10.32343561,144.91,144.88,6.899]
[1750920355418,3.42573561,144.91,144.88,6.899]
[1750920358829,10.32343561,144.91,144.87,6.8995]
[1750920359621,6.8982,144.9,144.87,6.8995]
[1750920359829,3.42573561,144.91,144.86,34.14]
[1750920360025,10.32463561,144.89,144.84,2.2707]
[1750920360218,3.42573561,144.89,144.84,2.2707]
[1750920360529,3.42573561,144.89,144.86,6.8998]
[1750920361728,10.32443561,144.89,144.86,6.8998]
[1750920362330,3.42573561,144.89,144.86,6.8998]
[1750920364631,3.42573561,144.89,144.84,2.2707]
[1750920365834,3.42573561,144.89,144.86,6.8996]
[1750920367934,3.42573561,144.89,144.87,6.8996]
[1750920370229,10.32363561,144.91,144.88,6.8991]
[1750920370440,3.42573561,144.91,144.84,5.69643561]
[1750920372536,37.56573561,144.93,144.84,5.69643561]
[1750920372834,37.56573561,144.93,144.85,2.2916]
[1750920373035,6.8975,144.92,144.88,6.8988]
[1750920373436,37.56573561,144.93,144.85,2.2916]
[1750920373637,44.46273561,144.93,144.85,2.2916]
[1750920373838,37.56573561,144.93,144.85,2.2916]
[1750920374244,6.8975,144.92,144.88,6.8988]
[1750920375040,10.32343561,144.91,144.88,6.8988]
[1750920377445,3.42573561,144.91,144.88,6.8988]
[1750920377941,3.42573561,144.91,144.89,6.8986]
[1750920378142,44.46263561,144.93,144.89,6.8986]
[1750920378341,37.56573561,144.93,144.87,34.14]
[1750920378545,6.8977,144.92,144.88,6.8986]
[1750920379137,6.8977,144.92,144.89,6.8985]
[1750920379340,44.46263561,144.93,144.87,34.14]
[1750920380144,37.56573561,144.93,144.87,34.14]
[1750920381544,37.56573561,144.93,144.9,6.8979]
[1750920382036,10.32173561,144.95,144.91,6.8974]
[1750920382344,3.42573561,144.95,144.87,34.14]
[1750920382547,10.32153561,144.95,144.88,3.42573561]
[1750920382739,10.32153561,144.95,144.91,6.8973]
[1750920383252,6.8963,144.94,144.9,6.898]
[1750920386342,6.8963,144.94,144.91,6.8976]
[1750920386538,3.42573561,144.95,144.88,3.42573561]
[1750920386846,3.42573561,144.95,144.92,6.8971]
[1750920388646,3.42573561,144.95,144.93,6.8967]
[1750920389053,3.42573561,144.97,144.91,34.14]
[1750920389551,3.42573561,144.97,144.91,36.5091]
[1750920389738,40.03833561,144.99,144.91,36.5091]
[1750920389942,37.56573561,144.99,144.91,36.5091]
[1750920390333,44.45983561,144.99,144.95,6.8955]
[1750920393154,37.56573561,144.99,144.96,6.8952]
[1750920393341,3.42573561,144.99,144.96,6.8952]
[1750920394050,3.42573561,144.99,144.91,39.93483561]
[1750920394051,10.31973561,144.99,144.94,6.8958]
[1750920394440,6.8947,144.98,144.94,6.8958]
[1750920397351,3.42573561,144.97,144.93,6.8967]
[1750920397551,3.42573561,144.97,144.91,34.14]
[1750920398055,3.42573561,144.97,144.92,6.8969]
[1750920399153,6.8954,144.96,144.93,6.8967]
[1750920404259,6.8954,144.96,144.92,6.897]
[1750920404454,6.896,144.95,144.92,6.897]
[1750920405847,6.896,144.95,144.91,41.0375]
[1750920406048,6.8963,144.94,144.91,41.0375]
[1750920410256,6.8967,144.93,144.91,34.14]
[1750920410651,6.8967,144.93,144.9,6.8978]
[1750920411359,6.8972,144.92,144.89,6.8984]
[1750920415065,10.32263561,144.93,144.89,6.8984]
[1750920416367,3.42573561,144.93,144.9,6.898]
[1750920417659,10.32243561,144.93,144.9,6.898]
[1750920420266,2.19307013,144.92,144.9,6.898]
[1750920422266,2.19307013,144.94,144.9,2.19307013]
[1750920423480,2.19307013,144.94,144.92,6.8972]
[1750920425162,2.19307013,144.97,144.92,36.31307013]
[1750920425567,2.19307013,144.97,144.95,6.8954]
[1750920426363,10.31813134,144.99,144.95,6.8954]
[1750920427871,3.42403134,144.99,144.96,6.8952]
[1750920430872,10.31803134,144.99,144.95,6.8956]
[1750920433476,3.42403134,144.99,144.96,6.8952]
[1750920436370,44.43713134,145.01,144.93,3.42403134]
[1750920436972,3.42403134,145.01,144.93,3.42403134]
[1750920437274,3.42403134,145.03,144.95,3.42403134]
[1750920437476,37.50403134,145.04,145.0,6.8932]
[1750920437869,3.42403134,145.04,144.97,3.42403134]
[1750920438175,3.42403134,145.04,145.0,6.8931]
[1750920438679,10.31553134,145.04,145.0,6.8931]
[1750920439568,6.8915,145.04,145.0,6.8931]
[1750920439771,10.31553134,145.04,145.0,6.8931]
[1750920440676,3.42403134,145.04,144.97,5.71013134]
[1750920440872,3.42403134,145.04,145.01,6.8928]
[1750920441381,10.31563134,145.04,144.99,6.8938]
[1750920441673,3.42403134,145.02,144.96,34.08]
[1750920442079,10.31663134,145.02,144.98,6.8943]
[1750920443185,6.893,145.01,144.98,6.8943]
[1750920443381,3.42403134,145.02,144.96,34.08]
[1750920444776,3.42403134,144.98,144.93,34.08]
[1750920445378,3.42403134,144.98,144.94,6.8959]
[1750920445885,3.42403134,144.98,144.93,40.9765]
[1750920446384,3.42403134,144.98,144.93,34.08]
[1750920446581,10.31863134,144.98,144.94,6.8962]
[1750920447882,6.8949,144.97,144.94,6.8962]
[1750920448082,3.42403134,144.98,144.94,6.8962]
[1750920448582,10.31883134,144.98,144.94,6.8962]
[1750920449785,6.8949,144.97,144.94,6.8962]
[1750920451988,10.31843134,144.98,144.95,6.8957]
[1750920452486,3.42403134,144.98,144.95,6.8957]
[1750920452789,3.42403134,144.98,144.96,6.8952]
[1750920452978,5.83733134,145.0,144.96,6.8952]
[1750920453287,12.73103134,145.0,144.96,6.8952]
[1750920455582,12.73103134,145.0,144.97,6.8948]
[1750920457680,9.307,145.0,144.97,6.8948]
[1750920457880,12.73103134,145.0,144.97,6.8948]
[1750920458185,3.42403134,144.98,144.9,629.82]
[1750920458784,6.8956,144.96,144.92,6.8969]
[1750920463691,6.8958,144.95,144.92,6.8969]
[1750920465090,6.8964,144.94,144.91,6.8976]
[1750920465299,3.42543406,144.94,144.9,34.08]
[1750920465980,10.32193406,144.94,144.91,6.8975]
[1750920466385,10.32083406,144.96,144.9,34.08]
[1750920466580,34.08,144.99,144.9,34.08]
[1750920466793,3.42543406,144.98,144.9,34.08]
[1750920467097,10.32003406,144.98,144.94,6.896]
[1750920469687,10.32003406,144.98,144.95,6.8957]
[1750920470594,3.42543406,144.98,144.96,6.8953]
[1750920470896,3.42543406,144.98,144.91,3.42543406]
[1750920471192,3.42543406,144.98,144.95,6.8955]
[1750920471398,34.08,144.99,144.91,3.42543406]
[1750920471589,6.8936,145.0,144.93,3.42543406]
[1750920471794,3.42543406,145.01,144.94,34.08]
[1750920472192,10.31853406,145.01,144.97,6.8945]
[1750920472789,6.8934,145.0,144.97,6.8945]
[1750920473096,3.42543406,145.01,144.96,6.8952]
[1750920473490,3.42543406,145.01,144.97,6.8948]
[1750920474094,6.8937,145.0,144.97,6.8948]
[1750920474296,3.42543406,145.01,144.96,6.8951]
[1750920474695,6.8939,144.99,144.96,6.8951]
[1750920476103,6.8944,144.98,144.95,6.8956]
[1750920476704,3.42543406,144.97,144.91,34.08]
[1750920478201,10.32043406,144.97,144.93,6.8964]
[1750920479408,10.32043406,144.97,144.91,34.08]
[1750920480400,10.32043406,144.97,144.93,6.8964]
[1750920480911,10.32043406,144.97,144.91,34.08]
[1750920481112,3.42543406,144.97,144.94,6.8961]
[1750920482309,10.32033406,144.97,144.94,6.8961]
[1750920482513,10.32033406,144.97,144.93,6.8965]
[1750920482814,10.32033406,144.97,144.91,34.08]
[1750920483115,3.42543406,144.97,144.94,6.8962]
[1750920484213,6.8945,144.98,144.94,6.8962]
[1750920484414,44.39943406,144.99,144.91,37.50543406]
[1750920485615,44.39943406,144.99,144.96,6.8952]
[1750920485616,37.50543406,144.99,144.96,6.8952]
[1750920487310,44.39963406,144.99,144.95,6.8957]
[1750920489419,6.8945,144.98,144.95,6.8957]
[1750920490016,3.42543406,144.97,144.91,34.08]
[1750920491522,6.8958,144.95,144.92,6.8969]
[1750920492019,3.42543406,144.97,144.92,6.8969]
[1750920492418,6.8956,144.96,144.92,6.8969]
[1750920494415,6.8958,144.95,144.92,6.8969]
[1750920495528,6.8956,144.96,144.93,6.8967]
[1750920495823,3.42543406,144.97,144.91,34.08]
[1750920496017,3.42543406,144.97,144.91,37.50543406]
[1750920496219,3.42543406,144.97,144.94,6.8959]
[1750920497124,44.39943406,144.99,144.95,6.8956]
[1750920498520,3.42543406,144.99,144.96,6.8952]
[1750920498924,10.31963406,144.99,144.95,6.8954]
[1750920499516,10.31963406,144.99,144.96,6.8953]
[1750920500020,10.31963406,144.99,144.95,6.8956]
[1750920500420,10.31963406,144.99,144.92,2.4333]
[1750920500827,3.42543406,144.99,144.92,2.4333]
[1750920501324,3.42543406,144.99,144.96,6.8952]
[1750920501525,10.31943406,144.99,144.92,2.4333]
[1750920501829,10.31943406,144.99,144.95,6.8955]
[1750920502018,6.8944,144.98,144.95,6.8955]
[1750920502423,6.8944,144.98,144.94,6.8962]
[1750920503828,6.8951,144.97,144.94,6.8962]
[1750920505122,6.8951,144.97,144.93,6.8966]
[1750920505321,6.8954,144.96,144.93,6.8966]
[1750920505918,3.42543406,144.95,144.91,34.08]
[1750920507523,6.8965,144.94,144.91,40.9776]
[1750920508122,10.32143406,144.95,144.91,40.9776]
[1750920509823,3.42543406,144.93,144.8,679.08171097]
[1750920510019,3.42543406,144.9,144.84,34.08]
[1750920510328,10.32383406,144.9,144.86,6.8997]
[1750920510526,10.32383406,144.9,144.84,34.08]
[1750920510727,3.42543406,144.9,144.84,34.08]
[1750920511733,3.42543406,144.9,144.88,6.8989]
[1750920513133,3.42543406,144.92,144.84,37.50543406]
[1750920513328,3.42543406,144.92,144.86,3.42543406]
[1750920513529,37.50543406,144.94,144.86,3.42543406]
[1750920513729,37.50543406,144.94,144.87,4.8048]
[1750920514024,3.42543406,144.94,144.88,34.08]
[1750920514430,10.32093406,144.96,144.92,6.8969]
[1750920514623,3.42543406,144.96,144.88,37.50543406]
[1750920515032,3.42543406,144.96,144.93,6.8966]
[1750920515830,3.42543406,144.96,144.94,6.8962]
[1750920517526,3.42543406,144.96,144.93,6.8965]
[1750920517929,3.42543406,144.96,144.92,34.08]
[1750920518936,3.42543406,144.96,144.94,6.8962]
[1750920519735,3.42543406,144.98,144.95,6.8958]
[1750920520334,3.42543406,144.98,144.94,6.8961]
[1750920520939,10.32003406,144.98,144.94,6.8961]
[1750920522640,6.8948,144.97,144.94,6.8961]
[1750920522941,3.42543406,144.98,144.95,6.8958]
[1750920525037,9.2307,144.99,144.95,6.8958]
[1750920525238,10.31943406,144.99,144.95,6.8958]
[1750920525738,10.31943406,144.99,144.92,36.4749]
[1750920525739,3.42543406,144.99,144.96,6.8952]
[1750920528238,10.31933406,144.99,144.96,6.8952]
[1750920528746,10.31933406,144.99,144.95,6.8956]
[1750920529743,6.8944,144.98,144.95,6.8956]
[1750920529935,3.42543406,144.99,144.95,6.8956]
[1750920530136,10.31963406,144.99,144.95,6.8956]
[1750920531232,3.42543406,144.99,144.94,6.8961]
[1750920532145,3.42543406,144.99,144.92,36.4749]
[1750920532850,6.8944,144.98,144.94,6.8962]
[1750920533248,3.42543406,144.99,144.92,36.4749]
[1750920533449,3.42543406,144.99,144.96,6.8952]
[1750920534750,10.31933406,144.99,144.95,6.8956]
[1750920537348,3.42543406,144.99,144.94,6.896]
[1750920537553,3.42543406,144.97,144.92,36.4749]
[1750920538555,10.32053406,144.97,144.94,6.8961]
[1750920539155,3.42543406,144.97,144.95,6.8957]
[1750920542162,3.42543406,144.97,144.94,6.896]
[1750920543055,3.42543406,144.97,144.95,6.8957]
[1750920545156,3.42543406,144.97,144.94,6.8961]
[1750920547157,34.08,145.0,144.92,34.08]
[1750920547357,3.42543406,144.95,144.92,34.08]
[1750920547757,3.42585749,144.95,144.92,40.9769]
[1750920548667,3.42585749,144.95,144.93,6.8967]
[1750920549963,3.42585749,144.95,144.92,34.08]
[1750920550159,3.42585749,144.95,144.89,34.08]
[1750920551665,6.8965,144.94,144.91,6.8977]
[1750920552671,10.32297667,144.94,144.91,6.8977]
[1750920553068,3.42647667,144.94,144.91,6.8977]
[1750920554963,10.32277667,144.94,144.91,6.8977]
[1750920555362,10.32277667,144.94,144.89,34.08]
[1750920555363,3.42647667,144.94,144.9,6.898]
[1750920555569,10.32287667,144.94,144.9,6.898]
[1750920555966,10.32287667,144.94,144.91,6.8976]
[1750920556981,3.42647667,144.94,144.91,6.8976]
[1750920560382,3.42647667,144.92,144.89,34.08]
[1750920560680,3.42647667,144.9,144.86,34.08]
[1750920561566,3.42647667,144.9,144.86,40.9799]
[1750920561779,3.42647667,144.88,144.83,34.08]
[1750920562183,10.32557667,144.88,144.85,6.9002]
[1750920564468,10.32557667,144.88,144.83,34.08]
[1750920564469,10.32557667,144.88,144.84,6.9008]
[1750920564673,10.32557667,144.88,144.83,34.08]
[1750920565082,10.32557667,144.88,144.84,6.9008]
[1750920565274,6.8997,144.87,144.84,6.9008]
[1750920565581,3.42647667,144.88,144.84,6.9008]
[1750920565777,10.32577667,144.88,144.84,6.9008]
[1750920566887,10.32577667,144.88,144.85,6.9005]
[1750920567586,3.42647667,144.88,144.86,6.9]
[1750920567783,3.42647667,144.9,144.86,6.9]
[1750920568582,10.32497667,144.9,144.86,6.9]
[1750920568784,3.42647667,144.9,144.83,37.50647667]
[1750920570286,3.42647667,144.9,144.87,6.8993]
[1750920570584,6.8981,144.91,144.87,6.8993]
[1750920570787,10.32457667,144.91,144.87,6.8993]
[1750920571284,6.8983,144.9,144.87,6.8993]
[1750920571881,10.32477667,144.9,144.87,6.8993]
[1750920572587,3.42647667,144.9,144.87,6.8993]
[1750920572777,3.42647667,144.9,144.83,37.50647667]
[1750920572778,3.42647667,144.9,144.86,6.8999]
[1750920573275,10.32467667,144.9,144.86,6.8999]
[1750920573679,10.32467667,144.9,144.87,6.8996]
[1750920577089,3.42647667,144.9,144.88,6.8991]
[1750920577387,3.42647667,144.93,144.87,34.1]
[1750920577786,10.32347667,144.93,144.89,6.8983]
[1750920578486,3.42647667,144.91,144.88,6.8989]
[1750920578782,3.42647667,144.91,144.87,34.1]
[1750920578987,10.32447667,144.91,144.87,40.9992]
[1750920579186,3.42647667,144.91,144.87,40.9992]
[1750920580689,6.8982,144.9,144.87,40.9992]
[1750920582796,6.8982,144.9,144.87,6.8992]
[1750920588196,2.19399671,144.89,144.87,6.8992]
[1750920589598,2.19399671,144.89,144.88,6.8991]
[1750920592602,2.19399671,144.9,144.88,6.8991]
[1750920592802,2.19399671,144.89,144.88,6.8991]
[1750920593406,2.19399671,144.91,144.87,2.19399671]
[1750920594611,2.19399671,144.91,144.89,6.8982]
[1750920595306,2.19399671,144.9,144.88,6.8989]
[1750920597708,2.19399671,144.89,144.86,6.8997]
[1750920598007,2.19399671,144.87,144.84,34.08]
[1750920598210,2.19399671,144.87,144.85,6.9003]
[1750920599511,2.19399671,144.86,144.85,6.9003]
[1750920600106,2.19399671,144.87,144.85,6.9003]
[1750920604606,2.19399671,144.87,144.84,40.9808]
[1750920605516,2.19399671,144.87,144.83,2.19399671]
[1750920605517,2.19399671,144.85,144.81,34.1]
[1750920605715,2.19399671,144.84,144.81,34.1]
[1750920606118,34.08,144.91,144.82,6.9017]
[1750920606119,2.19399671,144.83,144.82,6.9017]
[1750920606616,2.19399671,144.84,144.82,6.9017]
[1750920607518,2.19399671,144.84,144.81,34.1]
[1750920607713,2.19399671,144.82,144.78,40.96139671]
[1750920608220,2.19399671,144.82,144.8,6.9025]
[1750920608521,2.19399671,144.82,144.78,40.96139671]
[1750920608820,2.19399671,144.82,144.81,6.9024]
[1750920609317,2.19399671,144.82,144.8,6.9027]
[1750920609615,2.19399671,144.81,144.78,38.7674]
[1750920609819,2.19399671,144.81,144.78,36.5347]
[1750920610513,2.19399671,144.81,144.8,6.9029]
[1750920610913,2.19399671,144.84,144.79,2.19399671]
[1750920611115,2.19399671,144.83,144.78,38.72869671]
[1750920611416,2.19399671,144.82,144.78,38.72869671]
[1750920612114,2.19399671,144.8,144.76,2.19399671]
[1750920612419,2.19399671,144.79,144.75,96.62469395]
[1750920614217,3.43251234,144.81,144.75,94.43069724]
[1750920614611,10.33491234,144.81,144.78,6.9039]
[1750920615618,3.43251234,144.81,144.78,6.9039]
[1750920616325,6.9028,144.81,144.75,34.1]
[1750920616521,10.33531234,144.81,144.75,34.1]
[1750920616721,10.33531234,144.81,144.77,6.904]
[1750920617023,10.33531234,144.81,144.75,34.1]
[1750920617415,10.33531234,144.81,144.77,6.9039]
[1750920621528,3.43251234,144.79,144.75,34.1]
[1750920622225,3.43251234,144.79,144.75,6.905]
[1750920622625,10.33601234,144.79,144.76,6.9047]
[1750920623617,3.43251234,144.79,144.77,6.9043]
[1750920623820,3.43251234,144.81,144.72,170.31251234]
[1750920624018,6.9031,144.8,144.72,170.31251234]
[1750920624421,3.43251234,144.81,144.77,6.9042]
[1750920625328,10.33511234,144.81,144.77,6.9042]
[1750920625730,3.43251234,144.81,144.78,6.9036]
[1750920626226,3.43251234,144.81,144.77,6.9041]
[1750920627329,3.43251234,144.81,144.76,6.9047]
[1750920627526,6.9032,144.8,144.76,6.9047]
[1750920628128,6.9035,144.79,144.76,6.9047]
[1750920628423,3.43251234,144.79,144.75,6.9052]
[1750920628629,3.43251234,144.79,144.72,34.1]
[1750920628630,3.43251234,144.77,144.72,34.1]
[1750920629129,10.33701234,144.77,144.74,6.9057]
[1750920630225,37.53251234,144.79,144.72,34.1]
[1750920630613,37.53251234,144.79,144.72,37.53251234]
[1750920631225,37.53251234,144.79,144.77,6.9043]
[1750920631430,3.43251234,144.79,144.77,6.9043]
[1750920640333,2.19709125,144.78,144.77,6.9043]
[1750920641836,2.19709125,144.78,144.74,2.19709125]
[1750920641837,2.19709125,144.78,144.76,6.9046]
[1750920643339,2.19709125,144.78,144.72,34.1]
[1750920643551,2.19709125,144.77,144.73,2.19709125]
[1750920643732,2.19709125,144.76,144.72,34.1]
[1750920643934,2.19709125,144.76,144.74,6.9054]
[1750920644228,3.43424083,144.77,144.74,6.9054]
[1750920648341,3.43424083,144.77,144.72,34.1]
[1750920649442,3.43424083,144.77,144.74,6.9054]
[1750920652043,6.9035,144.79,144.75,6.9053]
[1750920652243,3.43424083,144.78,144.75,6.9053]
[1750920653044,3.43424083,144.8,144.72,37.53424083]
[1750920653534,3.43424083,144.8,144.77,6.9042]
[1750920653736,3.43424083,144.8,144.72,37.53424083]
[1750920655436,3.43424083,144.8,144.77,6.904]
[1750920657245,3.43424083,144.8,144.73,2.2576]
[1750920657547,37.57424083,144.83,144.76,3.43424083]
[1750920657746,3.43424083,144.83,144.76,37.57424083]
[1750920658542,10.33584083,144.83,144.79,6.9031]
[1750920658738,10.33584083,144.83,144.76,34.14]
[1750920658936,3.43424083,144.83,144.76,34.14]